Body Name,Body,Service Division,Expense Type,Date Paid,Transaction Ref,Invoice Amount,Supplier Name
South Holland District Council,http://statistics.data.gov.uk/id/local-authority/32UF,Asset and Property,Buildings Maintenance - Programmed,09/12/2021,30008656,700,Tyrrell Contractors Ltd
South Holland District Council,http://statistics.data.gov.uk/id/local-authority/32UF,Asset and Property,Buildings Maintenance - Programmed,09/12/2021,30008657,"1,365.00",Tyrrell Contractors Ltd
South Holland District Council,http://statistics.data.gov.uk/id/local-authority/32UF,Asset and Property,Buildings Maintenance - Programmed,23/12/2021,30008887,775,Teams Ltd
South Holland District Council,http://statistics.data.gov.uk/id/local-authority/32UF,Asset and Property,Buildings Maintenance - Programmed,20/12/2021,30009391,"6,343.78",Ian Brown Electrical Engineers Ltd
South Holland District Council,http://statistics.data.gov.uk/id/local-authority/32UF,Asset and Property,Buildings Maintenance - Programmed,20/12/2021,30009399,"2,750.00",PERSONAL INFORMATION REDACTED
South Holland District Council,http://statistics.data.gov.uk/id/local-authority/32UF,Asset and Property,Buildings Maintenance - Programmed,23/12/2021,30009400,"2,000.00",PERSONAL INFORMATION REDACTED
South Holland District Council,http://statistics.data.gov.uk/id/local-authority/32UF,Asset and Property,Buildings Maintenance - Responsive,02/12/2021,30007646,530.66,H20 Nationwide Limited
South Holland District Council,http://statistics.data.gov.uk/id/local-authority/32UF,Asset and Property,Buildings Maintenance - Responsive,23/12/2021,30008372,650,Lex Hygiene
South Holland District Council,http://statistics.data.gov.uk/id/local-authority/32UF,Asset and Property,Buildings Maintenance - Responsive,14/12/2021,30008658,"1,423.99",Glen Farrow UK Ltd
South Holland District Council,http://statistics.data.gov.uk/id/local-authority/32UF,Asset and Property,Buildings Maintenance - Responsive,14/12/2021,30008691,423,Glen Farrow UK Ltd
South Holland District Council,http://statistics.data.gov.uk/id/local-authority/32UF,Asset and Property,Buildings Maintenance - Responsive,09/12/2021,30008692,"1,035.00",PERSONAL INFORMATION REDACTED
South Holland District Council,http://statistics.data.gov.uk/id/local-authority/32UF,Asset and Property,Buildings Maintenance - Responsive,04/01/2022,30008923,789,Teams Ltd
South Holland District Council,http://statistics.data.gov.uk/id/local-authority/32UF,Asset and Property,Buildings Maintenance - Responsive,20/12/2021,30009398,"1,800.00",PERSONAL INFORMATION REDACTED
South Holland District Council,http://statistics.data.gov.uk/id/local-authority/32UF,Asset and Property,Electricity,14/12/2021,30008977,"2,730.53",Total Energies
South Holland District Council,http://statistics.data.gov.uk/id/local-authority/32UF,Asset and Property,Electricity,14/12/2021,30008979,"2,955.95",Total Energies
South Holland District Council,http://statistics.data.gov.uk/id/local-authority/32UF,Asset and Property,Electricity,14/12/2021,30009096,"3,837.76",Total Energies
South Holland District Council,http://statistics.data.gov.uk/id/local-authority/32UF,Asset and Property,Electricity,14/12/2021,30009113,"3,861.61",Total Energies
South Holland District Council,http://statistics.data.gov.uk/id/local-authority/32UF,Asset and Property,Professional and Contractors Fees,20/12/2021,30008861,"3,750.00",NPS Peterborough Ltd
South Holland District Council,http://statistics.data.gov.uk/id/local-authority/32UF,Asset and Property,Water and Sewerage Charges,04/01/2022,30009546,"1,003.14",Wave
South Holland District Council,http://statistics.data.gov.uk/id/local-authority/32UF,Asset and Property,Water and Sewerage Charges,04/01/2022,30009547,697.36,Wave
South Holland District Council,http://statistics.data.gov.uk/id/local-authority/32UF,Asset and Property,Water and Sewerage Charges,23/12/2021,30009591,864.83,Wave
South Holland District Council,http://statistics.data.gov.uk/id/local-authority/32UF,Building Control,Buildings Maintenance - Responsive,14/12/2021,30009040,846,Stuart Taplin Plumbing and Build Maint
South Holland District Council,http://statistics.data.gov.uk/id/local-authority/32UF,Building Control,Professional and Contractors Fees,23/12/2021,30008799,455,Barlings KWA Ltd
South Holland District Council,http://statistics.data.gov.uk/id/local-authority/32UF,Building Control,Professional and Contractors Fees,23/12/2021,30008882,"1,750.00",Navitas EAS
South Holland District Council,http://statistics.data.gov.uk/id/local-authority/32UF,Building Control,Professional and Contractors Fees,23/12/2021,30009613,595,Sandland-Taylor Consultancy
South Holland District Council,http://statistics.data.gov.uk/id/local-authority/32UF,Building Control,Subscriptions to Organisations and Other Bodies,09/12/2021,30008622,"5,000.00",Lincolnshire Fire and Rescue
South Holland District Council,http://statistics.data.gov.uk/id/local-authority/32UF,Capital,Works to Buildings (Main Contractor),25/11/2021,30008423,"65,038.94",A Coupland (Surfacing) Ltd
South Holland District Council,http://statistics.data.gov.uk/id/local-authority/32UF,Capital,Works to Buildings (Main Contractor),20/12/2021,30008838,"56,801.27",A Coupland (Surfacing) Ltd
South Holland District Council,http://statistics.data.gov.uk/id/local-authority/32UF,Chief Executive,Agency Staff,23/12/2021,30009489,848.27,Penna PLC
South Holland District Council,http://statistics.data.gov.uk/id/local-authority/32UF,Chief Executive,Shared Management,23/12/2021,30006489,"13,030.34",Breckland Council
South Holland District Council,http://statistics.data.gov.uk/id/local-authority/32UF,Chief Executive,Shared Management,23/12/2021,30009636,"1,083.94",Breckland Council
South Holland District Council,http://statistics.data.gov.uk/id/local-authority/32UF,Chief Executive,Shared Management,23/12/2021,30009637,"13,030.34",Breckland Council
South Holland District Council,http://statistics.data.gov.uk/id/local-authority/32UF,Community Development,Advertising - Events,07/12/2021,30008628,600,People Systems & Process (PSP) Ltd
South Holland District Council,http://statistics.data.gov.uk/id/local-authority/32UF,Community Development,Computer Hardware Maintenance,04/01/2022,30009648,853.26,Spektrix Ltd
South Holland District Council,http://statistics.data.gov.uk/id/local-authority/32UF,Community Development,Electricity,14/12/2021,30009001,"1,106.33",Total Energies
South Holland District Council,http://statistics.data.gov.uk/id/local-authority/32UF,Community Development,Grants and Contributions - Where a Service is Received,14/12/2021,30007505,"6,000.00",Lincolnshire Sports Partnership Ltd
South Holland District Council,http://statistics.data.gov.uk/id/local-authority/32UF,Community Development,Grants and Contributions to Outside Bodies - No Service Received,09/12/2021,30008647,"1,000.00",Police and Crime Commissioner For Lincs
South Holland District Council,http://statistics.data.gov.uk/id/local-authority/32UF,Community Development,Other Miscellaneous Expenses,07/12/2021,30008227,800,Popcorn Media
South Holland District Council,http://statistics.data.gov.uk/id/local-authority/32UF,Community Development,Other Miscellaneous Expenses,16/12/2021,30008916,179.78,South Lincs Security Limited
South Holland District Council,http://statistics.data.gov.uk/id/local-authority/32UF,Community Development,Other Miscellaneous Expenses,14/12/2021,30009174,449.96,Tooleys Amusements
South Holland District Council,http://statistics.data.gov.uk/id/local-authority/32UF,Community Development,Other Miscellaneous Expenses,04/01/2022,30009725,"3,800.00",Parkwood Leisure Limited
South Holland District Council,http://statistics.data.gov.uk/id/local-authority/32UF,Community Development,Performers and Entertainers Fees,02/12/2021,30008492,"4,292.40",Phil McIntyre Live Ltd
South Holland District Council,http://statistics.data.gov.uk/id/local-authority/32UF,Community Development,Performers and Entertainers Fees,09/12/2021,30008846,750,Pickled Image
South Holland District Council,http://statistics.data.gov.uk/id/local-authority/32UF,Community Development,Performers and Entertainers Fees,14/12/2021,30008892,"20,628.80",Polka Dot Pantomimes
South Holland District Council,http://statistics.data.gov.uk/id/local-authority/32UF,Community Development,Performers and Entertainers Fees,16/12/2021,30009429,"18,362.93",Polka Dot Pantomimes
South Holland District Council,http://statistics.data.gov.uk/id/local-authority/32UF,Community Development,Professional and Contractors Fees,07/12/2021,30007598,910,PERSONAL INFORMATION REDACTED
South Holland District Council,http://statistics.data.gov.uk/id/local-authority/32UF,Community Development,Professional and Contractors Fees,07/12/2021,30008207,735,GBSG Ltd
South Holland District Council,http://statistics.data.gov.uk/id/local-authority/32UF,Community Development,Purchase of Goods for Resale,09/12/2021,30008847,496.43,Bidfood
South Holland District Council,http://statistics.data.gov.uk/id/local-authority/32UF,Community Development,Water and Sewerage Charges,23/12/2021,30008359,"3,204.28",Wave
South Holland District Council,http://statistics.data.gov.uk/id/local-authority/32UF,Democratic Services,Course Fees,13/01/2022,30009718,900,Association of Electoral Adminstrators
South Holland District Council,http://statistics.data.gov.uk/id/local-authority/32UF,Democratic Services,Legal Fees,16/12/2021,30008710,"4,478.08",Lincolnshire County Council
South Holland District Council,http://statistics.data.gov.uk/id/local-authority/32UF,Democratic Services,Legal Fees,16/12/2021,30008849,"3,380.62",Lincolnshire County Council
South Holland District Council,http://statistics.data.gov.uk/id/local-authority/32UF,Democratic Services,Legal Fees Non-Routine,16/12/2021,30008802,652,Womble Bond Dickinson UK LLP
South Holland District Council,http://statistics.data.gov.uk/id/local-authority/32UF,Democratic Services,Other Communication Costs,09/12/2021,30008815,"2,450.00",Innovations Visual Comm Systems Ltd
South Holland District Council,http://statistics.data.gov.uk/id/local-authority/32UF,Democratic Services,Other Communication Costs,04/01/2022,30009681,"4,806.08",Civica Election Services
South Holland District Council,http://statistics.data.gov.uk/id/local-authority/32UF,Democratic Services,Postages,23/12/2021,30008883,968.75,Civica Election Services
South Holland District Council,http://statistics.data.gov.uk/id/local-authority/32UF,Democratic Services,Professional and Contractors Fees,07/12/2021,30008220,669,Innovations Visual Comm Systems Ltd
South Holland District Council,http://statistics.data.gov.uk/id/local-authority/32UF,Democratic Services,Stationery,23/12/2021,30008883,948.44,Civica Election Services
South Holland District Council,http://statistics.data.gov.uk/id/local-authority/32UF,Economic Development,Grants and Contributions to Outside Bodies - No Service Received,02/12/2021,30008477,500,Springfields Events and Conf Centre
South Holland District Council,http://statistics.data.gov.uk/id/local-authority/32UF,Economic Development,Grants and Contributions to Outside Bodies - No Service Received,02/12/2021,30008535,"4,271.00",Freeworld Foods Ltd
South Holland District Council,http://statistics.data.gov.uk/id/local-authority/32UF,Economic Development,Grants and Contributions to Outside Bodies - No Service Received,02/12/2021,30008536,"1,401.00",Spalding Medical Ltd
South Holland District Council,http://statistics.data.gov.uk/id/local-authority/32UF,Economic Development,Grants and Contributions to Outside Bodies - No Service Received,02/12/2021,30008541,"6,440.00",Banaman Ltd
South Holland District Council,http://statistics.data.gov.uk/id/local-authority/32UF,Economic Development,Grants and Contributions to Outside Bodies - No Service Received,02/12/2021,30008543,"4,129.00",Bright Spark Studios Ltd
South Holland District Council,http://statistics.data.gov.uk/id/local-authority/32UF,Economic Development,Grants and Contributions to Outside Bodies - No Service Received,07/12/2021,30008554,"2,342.00",Mr A Railton Fresh AIR Films and Media
South Holland District Council,http://statistics.data.gov.uk/id/local-authority/32UF,Economic Development,Grants and Contributions to Outside Bodies - No Service Received,07/12/2021,30008703,"6,566.00",Stevedon Cattery
South Holland District Council,http://statistics.data.gov.uk/id/local-authority/32UF,Economic Development,Grants and Contributions to Outside Bodies - No Service Received,07/12/2021,30008704,"5,000.00",F. Dring & Sons Ltd
South Holland District Council,http://statistics.data.gov.uk/id/local-authority/32UF,Economic Development,Grants and Contributions to Outside Bodies - No Service Received,07/12/2021,30008708,"3,072.00",PERSONAL INFORMATION REDACTED
South Holland District Council,http://statistics.data.gov.uk/id/local-authority/32UF,Economic Development,Grants and Contributions to Outside Bodies - No Service Received,07/12/2021,30008709,"14,850.00",Live Promotions Events Ltd
South Holland District Council,http://statistics.data.gov.uk/id/local-authority/32UF,Economic Development,Grants and Contributions to Outside Bodies - No Service Received,09/12/2021,30008794,"1,000.00",SPSC (UK) Ltd
South Holland District Council,http://statistics.data.gov.uk/id/local-authority/32UF,Economic Development,Grants and Contributions to Outside Bodies - No Service Received,16/12/2021,30008807,"5,000.00",By George Catering
South Holland District Council,http://statistics.data.gov.uk/id/local-authority/32UF,Economic Development,Grants and Contributions to Outside Bodies - No Service Received,09/12/2021,30008818,"1,800.00",Bespoke by Janet Louise
South Holland District Council,http://statistics.data.gov.uk/id/local-authority/32UF,Economic Development,Grants and Contributions to Outside Bodies - No Service Received,09/12/2021,30008820,"18,885.00",George Barnsdale & Sons Limited
South Holland District Council,http://statistics.data.gov.uk/id/local-authority/32UF,Economic Development,Grants and Contributions to Outside Bodies - No Service Received,14/12/2021,30008862,"9,030.00",Opperman Plants Limited
South Holland District Council,http://statistics.data.gov.uk/id/local-authority/32UF,Economic Development,Grants and Contributions to Outside Bodies - No Service Received,14/12/2021,30008869,"1,986.00",Totally Tanned Limited
South Holland District Council,http://statistics.data.gov.uk/id/local-authority/32UF,Economic Development,Grants and Contributions to Outside Bodies - No Service Received,14/12/2021,30009119,"7,640.00",PERSONAL INFORMATION REDACTED
South Holland District Council,http://statistics.data.gov.uk/id/local-authority/32UF,Economic Development,Grants and Contributions to Outside Bodies - No Service Received,14/12/2021,30009136,"3,055.00",8 Sail Brewery Ltd
South Holland District Council,http://statistics.data.gov.uk/id/local-authority/32UF,Economic Development,Grants and Contributions to Outside Bodies - No Service Received,14/12/2021,30009137,"5,000.00",Chapmans Business Solutions Ltd
South Holland District Council,http://statistics.data.gov.uk/id/local-authority/32UF,Economic Development,Grants and Contributions to Outside Bodies - No Service Received,14/12/2021,30009138,"2,704.96",Compton Heating Ltd
South Holland District Council,http://statistics.data.gov.uk/id/local-authority/32UF,Economic Development,Grants and Contributions to Outside Bodies - No Service Received,23/12/2021,30009460,"4,000.00",HJM Memorials
South Holland District Council,http://statistics.data.gov.uk/id/local-authority/32UF,Economic Development,Grants and Contributions to Outside Bodies - No Service Received,20/12/2021,30009461,"8,500.00",George Thompson (Farms) Limited
South Holland District Council,http://statistics.data.gov.uk/id/local-authority/32UF,Economic Development,Grants and Contributions to Outside Bodies - No Service Received,20/12/2021,30009462,"15,000.00",Scenic Homes Ltd
South Holland District Council,http://statistics.data.gov.uk/id/local-authority/32UF,Economic Development,Grants and Contributions to Outside Bodies - No Service Received,20/12/2021,30009463,"1,685.00",PERSONAL INFORMATION REDACTED
South Holland District Council,http://statistics.data.gov.uk/id/local-authority/32UF,Economic Development,Grants and Contributions to Outside Bodies - No Service Received,20/12/2021,30009464,"10,000.00",Bennett Butchers
South Holland District Council,http://statistics.data.gov.uk/id/local-authority/32UF,Economic Development,Grants and Contributions to Outside Bodies - No Service Received,20/12/2021,30009465,"9,246.00",Steve Butler Dental Ceramics Ltd
South Holland District Council,http://statistics.data.gov.uk/id/local-authority/32UF,Economic Development,Grants and Contributions to Outside Bodies - No Service Received,20/12/2021,30009466,"4,760.00",T & M Industries Ltd
South Holland District Council,http://statistics.data.gov.uk/id/local-authority/32UF,Economic Development,Grants and Contributions to Outside Bodies - No Service Received,20/12/2021,30009480,"8,400.00",NAB Colours and Dispersions Ltd
South Holland District Council,http://statistics.data.gov.uk/id/local-authority/32UF,Economic Development,Grants and Contributions to Outside Bodies - No Service Received,23/12/2021,30009525,"5,000.00",The Barber Shoppe (Holbeach) Ltd
South Holland District Council,http://statistics.data.gov.uk/id/local-authority/32UF,Economic Development,Grants and Contributions to Outside Bodies - No Service Received,23/12/2021,30009551,"11,856.00",Davis Worldwide
South Holland District Council,http://statistics.data.gov.uk/id/local-authority/32UF,Economic Development,Grants and Contributions to Outside Bodies - No Service Received,23/12/2021,30009552,"8,500.00",Peloton Produce Ltd
South Holland District Council,http://statistics.data.gov.uk/id/local-authority/32UF,Economic Development,Grants and Contributions to Outside Bodies - No Service Received,23/12/2021,30009570,"6,000.00",Morningside Kennels Ltd
South Holland District Council,http://statistics.data.gov.uk/id/local-authority/32UF,Economic Development,Grants and Contributions to Outside Bodies - No Service Received,23/12/2021,30009571,"14,667.00",Fenland Dental Laboratory Ltd
South Holland District Council,http://statistics.data.gov.uk/id/local-authority/32UF,Economic Development,Grants and Contributions to Outside Bodies - No Service Received,11/01/2022,30009572,"25,000.00",East Anglian Civils Ltd
South Holland District Council,http://statistics.data.gov.uk/id/local-authority/32UF,Economic Development,Grants and Contributions to Outside Bodies - No Service Received,04/01/2022,30009605,"3,120.00",Alan Barnsdale T/A Uptown Vinyl Records
South Holland District Council,http://statistics.data.gov.uk/id/local-authority/32UF,Economic Development,Professional and Contractors Fees,02/12/2021,30008519,893.75,Michael Page Internat Recruitment Ltd
South Holland District Council,http://statistics.data.gov.uk/id/local-authority/32UF,Economic Development,Professional and Contractors Fees,09/12/2021,30008711,562.5,Michael Page Internat Recruitment Ltd
South Holland District Council,http://statistics.data.gov.uk/id/local-authority/32UF,Economic Development,Professional and Contractors Fees,14/12/2021,30008928,"4,446.25",Kudos Project Management
South Holland District Council,http://statistics.data.gov.uk/id/local-authority/32UF,Economic Development,Professional and Contractors Fees,14/12/2021,30009106,"12,860.40",Reed Talent Solutions Ltd T/A Consultancy +
South Holland District Council,http://statistics.data.gov.uk/id/local-authority/32UF,Economic Development,Professional and Contractors Fees,14/12/2021,30009107,"4,685.57",Reed Talent Solutions Ltd T/A Consultancy +
South Holland District Council,http://statistics.data.gov.uk/id/local-authority/32UF,Economic Development,Professional and Contractors Fees,14/12/2021,30009108,495,Reed Talent Solutions Ltd T/A Consultancy +
South Holland District Council,http://statistics.data.gov.uk/id/local-authority/32UF,Economic Development,Professional and Contractors Fees,14/12/2021,30009109,550,Reed Talent Solutions Ltd T/A Consultancy +
South Holland District Council,http://statistics.data.gov.uk/id/local-authority/32UF,Economic Development,Professional and Contractors Fees,14/12/2021,30009110,"12,611.16",Reed Talent Solutions Ltd T/A Consultancy +
South Holland District Council,http://statistics.data.gov.uk/id/local-authority/32UF,Economic Development,Professional and Contractors Fees,23/12/2021,30009132,562.5,Michael Page Internat Recruitment Ltd
South Holland District Council,http://statistics.data.gov.uk/id/local-authority/32UF,Economic Development,Professional and Contractors Fees,20/12/2021,30009451,"1,402.72",Social Change UK
South Holland District Council,http://statistics.data.gov.uk/id/local-authority/32UF,Environmental Services,Agency Staff,02/12/2021,30008439,"4,335.91",Essential Staffing Ltd
South Holland District Council,http://statistics.data.gov.uk/id/local-authority/32UF,Environmental Services,Agency Staff,02/12/2021,30008443,"2,772.78",The Best Connection Group Ltd
South Holland District Council,http://statistics.data.gov.uk/id/local-authority/32UF,Environmental Services,Agency Staff,02/12/2021,30008528,"3,496.49",The Best Connection Group Ltd
South Holland District Council,http://statistics.data.gov.uk/id/local-authority/32UF,Environmental Services,Agency Staff,02/12/2021,30008529,"3,138.85",The Best Connection Group Ltd
South Holland District Council,http://statistics.data.gov.uk/id/local-authority/32UF,Environmental Services,Agency Staff,02/12/2021,30008530,"3,197.48",247 Personnel Ltd
South Holland District Council,http://statistics.data.gov.uk/id/local-authority/32UF,Environmental Services,Agency Staff,02/12/2021,30008532,615.32,247 Personnel Ltd
South Holland District Council,http://statistics.data.gov.uk/id/local-authority/32UF,Environmental Services,Agency Staff,02/12/2021,30008534,589.04,247 Personnel Ltd
South Holland District Council,http://statistics.data.gov.uk/id/local-authority/32UF,Environmental Services,Agency Staff,02/12/2021,30008537,982.72,Capital Outsourcing Group Food
South Holland District Council,http://statistics.data.gov.uk/id/local-authority/32UF,Environmental Services,Agency Staff,02/12/2021,30008539,"4,228.92",Essential Staffing Ltd
South Holland District Council,http://statistics.data.gov.uk/id/local-authority/32UF,Environmental Services,Agency Staff,02/12/2021,30008542,"2,945.65",The Best Connection Group Ltd
South Holland District Council,http://statistics.data.gov.uk/id/local-authority/32UF,Environmental Services,Agency Staff,02/12/2021,30008544,"3,572.25",The Best Connection Group Ltd
South Holland District Council,http://statistics.data.gov.uk/id/local-authority/32UF,Environmental Services,Agency Staff,07/12/2021,30008616,"1,497.02",Blue Arrow Ltd
South Holland District Council,http://statistics.data.gov.uk/id/local-authority/32UF,Environmental Services,Agency Staff,14/12/2021,30008655,"1,285.25",Questech Recruitment Limited
South Holland District Council,http://statistics.data.gov.uk/id/local-authority/32UF,Environmental Services,Agency Staff,20/12/2021,30008660,"1,007.00",Questech Recruitment Limited
South Holland District Council,http://statistics.data.gov.uk/id/local-authority/32UF,Environmental Services,Agency Staff,07/12/2021,30008695,598.17,247 Personnel Ltd
South Holland District Council,http://statistics.data.gov.uk/id/local-authority/32UF,Environmental Services,Agency Staff,07/12/2021,30008696,982.93,Integrity Plus Ltd
South Holland District Council,http://statistics.data.gov.uk/id/local-authority/32UF,Environmental Services,Agency Staff,23/12/2021,30008702,"1,060.00",Questech Recruitment Limited
South Holland District Council,http://statistics.data.gov.uk/id/local-authority/32UF,Environmental Services,Agency Staff,07/12/2021,30008705,"1,766.02",Integrity Plus Ltd
South Holland District Council,http://statistics.data.gov.uk/id/local-authority/32UF,Environmental Services,Agency Staff,07/12/2021,30008706,"1,435.55",Integrity Plus Ltd
South Holland District Council,http://statistics.data.gov.uk/id/local-authority/32UF,Environmental Services,Agency Staff,07/12/2021,30008712,609.6,247 Personnel Ltd
South Holland District Council,http://statistics.data.gov.uk/id/local-authority/32UF,Environmental Services,Agency Staff,07/12/2021,30008713,796,247 Personnel Ltd
South Holland District Council,http://statistics.data.gov.uk/id/local-authority/32UF,Environmental Services,Agency Staff,07/12/2021,30008733,"1,060.00",Questech Recruitment Limited
South Holland District Council,http://statistics.data.gov.uk/id/local-authority/32UF,Environmental Services,Agency Staff,09/12/2021,30008795,592,Steves Garden and Household Services
South Holland District Council,http://statistics.data.gov.uk/id/local-authority/32UF,Environmental Services,Agency Staff,09/12/2021,30008800,"2,929.10",Encore Personnel Services Ltd
South Holland District Council,http://statistics.data.gov.uk/id/local-authority/32UF,Environmental Services,Agency Staff,20/12/2021,30008809,"1,690.31",Blue Arrow Ltd
South Holland District Council,http://statistics.data.gov.uk/id/local-authority/32UF,Environmental Services,Agency Staff,09/12/2021,30008810,"3,069.69",Integrity Plus Ltd
South Holland District Council,http://statistics.data.gov.uk/id/local-authority/32UF,Environmental Services,Agency Staff,16/12/2021,30008811,"1,250.60",Quality Service Recruitment Ltd
South Holland District Council,http://statistics.data.gov.uk/id/local-authority/32UF,Environmental Services,Agency Staff,23/12/2021,30008812,"1,065.60",Quality Service Recruitment Ltd
South Holland District Council,http://statistics.data.gov.uk/id/local-authority/32UF,Environmental Services,Agency Staff,14/12/2021,30008874,"9,768.04",NJW Services
South Holland District Council,http://statistics.data.gov.uk/id/local-authority/32UF,Environmental Services,Agency Staff,14/12/2021,30008895,"2,919.84",Encore Personnel Services Ltd
South Holland District Council,http://statistics.data.gov.uk/id/local-authority/32UF,Environmental Services,Agency Staff,23/12/2021,30008897,"1,184.00",Quality Service Recruitment Ltd
South Holland District Council,http://statistics.data.gov.uk/id/local-authority/32UF,Environmental Services,Agency Staff,16/12/2021,30008934,592,Steves Garden and Household Services
South Holland District Council,http://statistics.data.gov.uk/id/local-authority/32UF,Environmental Services,Agency Staff,14/12/2021,30009116,"3,678.33",Integrity Plus Ltd
South Holland District Council,http://statistics.data.gov.uk/id/local-authority/32UF,Environmental Services,Agency Staff,23/12/2021,30009133,592,Steves Garden and Household Services
South Holland District Council,http://statistics.data.gov.uk/id/local-authority/32UF,Environmental Services,Agency Staff,06/01/2022,30009401,473.6,Quality Service Recruitment Ltd
South Holland District Council,http://statistics.data.gov.uk/id/local-authority/32UF,Environmental Services,Agency Staff,23/12/2021,30009402,"1,603.95",Blue Arrow Ltd
South Holland District Council,http://statistics.data.gov.uk/id/local-authority/32UF,Environmental Services,Agency Staff,16/12/2021,30009404,"3,445.02",The Best Connection Group Ltd
South Holland District Council,http://statistics.data.gov.uk/id/local-authority/32UF,Environmental Services,Agency Staff,16/12/2021,30009405,"3,265.10",The Best Connection Group Ltd
South Holland District Council,http://statistics.data.gov.uk/id/local-authority/32UF,Environmental Services,Agency Staff,16/12/2021,30009408,"4,821.84",Encore Personnel Services Ltd
South Holland District Council,http://statistics.data.gov.uk/id/local-authority/32UF,Environmental Services,Agency Staff,16/12/2021,30009409,"2,826.13",Integrity Plus Ltd
South Holland District Council,http://statistics.data.gov.uk/id/local-authority/32UF,Environmental Services,Agency Staff,16/12/2021,30009410,"3,496.01",Integrity Plus Ltd
South Holland District Council,http://statistics.data.gov.uk/id/local-authority/32UF,Environmental Services,Agency Staff,16/12/2021,30009411,"2,096.45",247 Personnel Ltd
South Holland District Council,http://statistics.data.gov.uk/id/local-authority/32UF,Environmental Services,Agency Staff,16/12/2021,30009412,"2,196.36",Integrity Plus Ltd
South Holland District Council,http://statistics.data.gov.uk/id/local-authority/32UF,Environmental Services,Agency Staff,16/12/2021,30009415,796,247 Personnel Ltd
South Holland District Council,http://statistics.data.gov.uk/id/local-authority/32UF,Environmental Services,Agency Staff,16/12/2021,30009416,485.39,247 Personnel Ltd
South Holland District Council,http://statistics.data.gov.uk/id/local-authority/32UF,Environmental Services,Agency Staff,20/12/2021,30009417,"1,769.51",247 Personnel Ltd
South Holland District Council,http://statistics.data.gov.uk/id/local-authority/32UF,Environmental Services,Agency Staff,20/12/2021,30009422,"4,331.78",Essential Staffing Ltd
South Holland District Council,http://statistics.data.gov.uk/id/local-authority/32UF,Environmental Services,Agency Staff,20/12/2021,30009500,"4,546.09",The Best Connection Group Ltd
South Holland District Council,http://statistics.data.gov.uk/id/local-authority/32UF,Environmental Services,Agency Staff,20/12/2021,30009501,"5,042.56",The Best Connection Group Ltd
South Holland District Council,http://statistics.data.gov.uk/id/local-authority/32UF,Environmental Services,Agency Staff,20/12/2021,30009502,"2,211.47",247 Personnel Ltd
South Holland District Council,http://statistics.data.gov.uk/id/local-authority/32UF,Environmental Services,Agency Staff,23/12/2021,30009505,592.37,Blue Arrow Ltd
South Holland District Council,http://statistics.data.gov.uk/id/local-authority/32UF,Environmental Services,Agency Staff,20/12/2021,30009510,"1,389.79",Essential Staffing Ltd
South Holland District Council,http://statistics.data.gov.uk/id/local-authority/32UF,Environmental Services,Agency Staff,20/12/2021,30009511,"1,204.88",Integrity Plus Ltd
South Holland District Council,http://statistics.data.gov.uk/id/local-authority/32UF,Environmental Services,Agency Staff,23/12/2021,30009512,982.72,Capital Outsourcing Group Food
South Holland District Council,http://statistics.data.gov.uk/id/local-authority/32UF,Environmental Services,Agency Staff,20/12/2021,30009513,982.72,Capital Outsourcing Group Food
South Holland District Council,http://statistics.data.gov.uk/id/local-authority/32UF,Environmental Services,Agency Staff,23/12/2021,30009556,592,Steves Garden and Household Services
South Holland District Council,http://statistics.data.gov.uk/id/local-authority/32UF,Environmental Services,Agency Staff,23/12/2021,30009562,853.63,247 Personnel Ltd
South Holland District Council,http://statistics.data.gov.uk/id/local-authority/32UF,Environmental Services,Agency Staff,23/12/2021,30009563,643.89,247 Personnel Ltd
South Holland District Council,http://statistics.data.gov.uk/id/local-authority/32UF,Environmental Services,Agency Staff,04/01/2022,30009687,"1,113.00",Questech Recruitment Limited
South Holland District Council,http://statistics.data.gov.uk/id/local-authority/32UF,Environmental Services,Agency Staff,13/01/2022,30009698,473.6,Quality Service Recruitment Ltd
South Holland District Council,http://statistics.data.gov.uk/id/local-authority/32UF,Environmental Services,Agency Staff,04/01/2022,30009699,"3,849.87",Integrity Plus Ltd
South Holland District Council,http://statistics.data.gov.uk/id/local-authority/32UF,Environmental Services,Agency Staff,04/01/2022,30009700,"1,514.73",Integrity Plus Ltd
South Holland District Council,http://statistics.data.gov.uk/id/local-authority/32UF,Environmental Services,Agency Staff,04/01/2022,30009722,"2,648.46",247 Personnel Ltd
South Holland District Council,http://statistics.data.gov.uk/id/local-authority/32UF,Environmental Services,Agency Staff,04/01/2022,30009726,"2,597.46",247 Personnel Ltd
South Holland District Council,http://statistics.data.gov.uk/id/local-authority/32UF,Environmental Services,Agency Staff,04/01/2022,30009727,876.21,247 Personnel Ltd
South Holland District Council,http://statistics.data.gov.uk/id/local-authority/32UF,Environmental Services,Agency Staff,04/01/2022,30009728,630.47,247 Personnel Ltd
South Holland District Council,http://statistics.data.gov.uk/id/local-authority/32UF,Environmental Services,Agency Staff,04/01/2022,30009729,"2,221.37",247 Personnel Ltd
South Holland District Council,http://statistics.data.gov.uk/id/local-authority/32UF,Environmental Services,Commercial Vehicle Lease Payments (Less than 12 months),16/12/2021,30008470,700,Lincs Van Hire
South Holland District Council,http://statistics.data.gov.uk/id/local-authority/32UF,Environmental Services,Commercial Vehicle Lease Payments (Less than 12 months),23/12/2021,30009545,"1,733.80",Go Plant Fleet Services
South Holland District Council,http://statistics.data.gov.uk/id/local-authority/32UF,Environmental Services,Commercial Vehicle Lease Payments (Less than 12 months),13/01/2022,30009632,700,Lincs Van Hire
South Holland District Council,http://statistics.data.gov.uk/id/local-authority/32UF,Environmental Services,Fuel and Oil,02/12/2021,30008552,"8,117.28",C H Jones Ltd
South Holland District Council,http://statistics.data.gov.uk/id/local-authority/32UF,Environmental Services,Fuel and Oil,07/12/2021,30008693,"8,353.49",C H Jones Ltd
South Holland District Council,http://statistics.data.gov.uk/id/local-authority/32UF,Environmental Services,Fuel and Oil,09/12/2021,30008841,"8,015.13",C H Jones Ltd
South Holland District Council,http://statistics.data.gov.uk/id/local-authority/32UF,Environmental Services,Fuel and Oil,16/12/2021,30009413,"7,393.11",C H Jones Ltd
South Holland District Council,http://statistics.data.gov.uk/id/local-authority/32UF,Environmental Services,Fuel and Oil,23/12/2021,30009561,"7,394.17",C H Jones Ltd
South Holland District Council,http://statistics.data.gov.uk/id/local-authority/32UF,Environmental Services,Grounds Maintenance Contract (External),20/12/2021,30009455,850,Greenscape Tree Safe Ltd
South Holland District Council,http://statistics.data.gov.uk/id/local-authority/32UF,Environmental Services,Legal Fees Non-Routine,13/01/2022,30009567,"1,002.00",Spire Solicitors LLP
South Holland District Council,http://statistics.data.gov.uk/id/local-authority/32UF,Environmental Services,Legal Fees Non-Routine,13/01/2022,30009568,990,Spire Solicitors LLP
South Holland District Council,http://statistics.data.gov.uk/id/local-authority/32UF,Environmental Services,Legal Fees Non-Routine,13/01/2022,30009569,993,Spire Solicitors LLP
South Holland District Council,http://statistics.data.gov.uk/id/local-authority/32UF,Environmental Services,Materials and Consumables,14/12/2021,30008623,"6,894.89",Berry BPI Refuse
South Holland District Council,http://statistics.data.gov.uk/id/local-authority/32UF,Environmental Services,Materials and Consumables,20/12/2021,30009458,490.99,PHS Group
South Holland District Council,http://statistics.data.gov.uk/id/local-authority/32UF,Environmental Services,PCN Income,23/12/2021,30009615,"1,756.00",Broadgate Builders T/A Westlode Car Park
South Holland District Council,http://statistics.data.gov.uk/id/local-authority/32UF,Environmental Services,PCN Income,23/12/2021,30009616,"1,741.36",Broadgate Builders T/A Westlode Car Park
South Holland District Council,http://statistics.data.gov.uk/id/local-authority/32UF,Environmental Services,Professional and Contractors Fees,23/12/2021,30008819,800,Weaar
South Holland District Council,http://statistics.data.gov.uk/id/local-authority/32UF,Environmental Services,Professional and Contractors Fees,23/12/2021,30008898,"1,032.43",Kings Armoured Security Services Ltd
South Holland District Council,http://statistics.data.gov.uk/id/local-authority/32UF,Environmental Services,Professional and Contractors Fees,16/12/2021,30009314,"2,458.72",GBSG Ltd
South Holland District Council,http://statistics.data.gov.uk/id/local-authority/32UF,Environmental Services,Professional and Contractors Fees,16/12/2021,30009406,"1,157.64",Lincolnshire County Council
South Holland District Council,http://statistics.data.gov.uk/id/local-authority/32UF,Environmental Services,Professional and Contractors Fees,16/12/2021,30009407,"1,290.50",Lincolnshire County Council
South Holland District Council,http://statistics.data.gov.uk/id/local-authority/32UF,Environmental Services,Professional and Contractors Fees,16/12/2021,30009419,"2,346.96",GBSG Ltd
South Holland District Council,http://statistics.data.gov.uk/id/local-authority/32UF,Environmental Services,Professional and Contractors Fees,23/12/2021,30009621,"1,500.00",T N Sneath and Sons
South Holland District Council,http://statistics.data.gov.uk/id/local-authority/32UF,Environmental Services,Stationery,23/12/2021,30009617,840,Nagels UK Limited
South Holland District Council,http://statistics.data.gov.uk/id/local-authority/32UF,Environmental Services,Transport Insurance Excess,04/01/2022,30009712,"1,382.90",Kents of Spalding Ltd
South Holland District Council,http://statistics.data.gov.uk/id/local-authority/32UF,Environmental Services,Tyres,02/12/2021,30008497,"5,123.00",Vaculug Technologies Ltd
South Holland District Council,http://statistics.data.gov.uk/id/local-authority/32UF,Environmental Services,Tyres,04/01/2022,30009707,"5,123.00",Vaculug Technologies Ltd
South Holland District Council,http://statistics.data.gov.uk/id/local-authority/32UF,Environmental Services,Workshop Parts,16/12/2021,30008642,"1,524.04",Fleet Factors Ltd
South Holland District Council,http://statistics.data.gov.uk/id/local-authority/32UF,Environmental Services,Workshop Parts,07/12/2021,30008652,"2,529.92",EMG Anglia Ltd
South Holland District Council,http://statistics.data.gov.uk/id/local-authority/32UF,Environmental Services,Workshop Parts,23/12/2021,30008804,"1,569.76",Fleet Factors Ltd
South Holland District Council,http://statistics.data.gov.uk/id/local-authority/32UF,Environmental Services,Workshop Parts,23/12/2021,30008921,941.52,Fleet Factors Ltd
South Holland District Council,http://statistics.data.gov.uk/id/local-authority/32UF,Environmental Services,Workshop Parts,06/01/2022,30009641,"1,449.97",Fleet Factors Ltd
South Holland District Council,http://statistics.data.gov.uk/id/local-authority/32UF,Finance,Professional and Contractors Fees,16/12/2021,30008398,"26,070.39",South Norfolk Council
South Holland District Council,http://statistics.data.gov.uk/id/local-authority/32UF,Finance,Professional Fees,16/12/2021,30008698,"4,500.00",Birketts Soicitors LLP
South Holland District Council,http://statistics.data.gov.uk/id/local-authority/32UF,Finance,Public Sector Partnership Services,14/12/2021,30009127,"257,205.75",Public Sector Partnership Services Ltd
South Holland District Council,http://statistics.data.gov.uk/id/local-authority/32UF,Finance,Purchase of Software Licences (Intangible),23/12/2021,30008796,"5,587.63",Idox Software Limited
South Holland District Council,http://statistics.data.gov.uk/id/local-authority/32UF,Housing,Agency Staff,02/12/2021,30008484,"1,440.00",Park Avenue Recruitment Ltd
South Holland District Council,http://statistics.data.gov.uk/id/local-authority/32UF,Housing,Agency Staff,20/12/2021,30009454,"4,218.00",Park Avenue Recruitment Ltd
South Holland District Council,http://statistics.data.gov.uk/id/local-authority/32UF,Housing,Agency Staff,20/12/2021,30009514,398.86,Integrity Plus Ltd
South Holland District Council,http://statistics.data.gov.uk/id/local-authority/32UF,Housing,Agency Staff,04/01/2022,30009701,398.86,Integrity Plus Ltd
South Holland District Council,http://statistics.data.gov.uk/id/local-authority/32UF,Housing,Agency Staff,04/01/2022,30009719,398.86,Integrity Plus Ltd
South Holland District Council,http://statistics.data.gov.uk/id/local-authority/32UF,Housing,Bed and Breakfast Accommodation (Homelessness Service),02/12/2021,30008496,746.67,the Anchor Inn
South Holland District Council,http://statistics.data.gov.uk/id/local-authority/32UF,Housing,Bed and Breakfast Accommodation (Homelessness Service),07/12/2021,30008648,"1,100.00",Riverside Hotel
South Holland District Council,http://statistics.data.gov.uk/id/local-authority/32UF,Housing,Bed and Breakfast Accommodation (Homelessness Service),07/12/2021,30008674,"3,691.91",G and A Hotels T A Woodlands Hotel
South Holland District Council,http://statistics.data.gov.uk/id/local-authority/32UF,Housing,Bed and Breakfast Accommodation (Homelessness Service),07/12/2021,30008675,"2,553.10",G and A Hotels T A Woodlands Hotel
South Holland District Council,http://statistics.data.gov.uk/id/local-authority/32UF,Housing,Bed and Breakfast Accommodation (Homelessness Service),07/12/2021,30008714,490,Anglia Motel
South Holland District Council,http://statistics.data.gov.uk/id/local-authority/32UF,Housing,Bed and Breakfast Accommodation (Homelessness Service),07/12/2021,30008715,560,Anglia Motel
South Holland District Council,http://statistics.data.gov.uk/id/local-authority/32UF,Housing,Bed and Breakfast Accommodation (Homelessness Service),07/12/2021,30008716,490,Anglia Motel
South Holland District Council,http://statistics.data.gov.uk/id/local-authority/32UF,Housing,Bed and Breakfast Accommodation (Homelessness Service),07/12/2021,30008717,875,Anglia Motel
South Holland District Council,http://statistics.data.gov.uk/id/local-authority/32UF,Housing,Bed and Breakfast Accommodation (Homelessness Service),07/12/2021,30008718,875,Anglia Motel
South Holland District Council,http://statistics.data.gov.uk/id/local-authority/32UF,Housing,Bed and Breakfast Accommodation (Homelessness Service),07/12/2021,30008719,595,Anglia Motel
South Holland District Council,http://statistics.data.gov.uk/id/local-authority/32UF,Housing,Bed and Breakfast Accommodation (Homelessness Service),07/12/2021,30008721,875,Anglia Motel
South Holland District Council,http://statistics.data.gov.uk/id/local-authority/32UF,Housing,Bed and Breakfast Accommodation (Homelessness Service),07/12/2021,30008722,687.5,Anglia Motel
South Holland District Council,http://statistics.data.gov.uk/id/local-authority/32UF,Housing,Bed and Breakfast Accommodation (Homelessness Service),07/12/2021,30008724,687.5,Anglia Motel
South Holland District Council,http://statistics.data.gov.uk/id/local-authority/32UF,Housing,Bed and Breakfast Accommodation (Homelessness Service),07/12/2021,30008725,687.5,Anglia Motel
South Holland District Council,http://statistics.data.gov.uk/id/local-authority/32UF,Housing,Bed and Breakfast Accommodation (Homelessness Service),23/12/2021,30009435,490,Anglia Motel
South Holland District Council,http://statistics.data.gov.uk/id/local-authority/32UF,Housing,Bed and Breakfast Accommodation (Homelessness Service),23/12/2021,30009436,490,Anglia Motel
South Holland District Council,http://statistics.data.gov.uk/id/local-authority/32UF,Housing,Bed and Breakfast Accommodation (Homelessness Service),23/12/2021,30009437,875,Anglia Motel
South Holland District Council,http://statistics.data.gov.uk/id/local-authority/32UF,Housing,Bed and Breakfast Accommodation (Homelessness Service),23/12/2021,30009438,490,Anglia Motel
South Holland District Council,http://statistics.data.gov.uk/id/local-authority/32UF,Housing,Bed and Breakfast Accommodation (Homelessness Service),23/12/2021,30009439,525,Anglia Motel
South Holland District Council,http://statistics.data.gov.uk/id/local-authority/32UF,Housing,Bed and Breakfast Accommodation (Homelessness Service),23/12/2021,30009440,490,Anglia Motel
South Holland District Council,http://statistics.data.gov.uk/id/local-authority/32UF,Housing,Bed and Breakfast Accommodation (Homelessness Service),23/12/2021,30009442,875,Anglia Motel
South Holland District Council,http://statistics.data.gov.uk/id/local-authority/32UF,Housing,Bed and Breakfast Accommodation (Homelessness Service),23/12/2021,30009443,875,Anglia Motel
South Holland District Council,http://statistics.data.gov.uk/id/local-authority/32UF,Housing,Bed and Breakfast Accommodation (Homelessness Service),23/12/2021,30009444,875,Anglia Motel
South Holland District Council,http://statistics.data.gov.uk/id/local-authority/32UF,Housing,Bed and Breakfast Accommodation (Homelessness Service),23/12/2021,30009445,625,Anglia Motel
South Holland District Council,http://statistics.data.gov.uk/id/local-authority/32UF,Housing,Computer Software Licence Costs,23/12/2021,30008884,"5,000.00",NEC Software Solutions UK Ltd
South Holland District Council,http://statistics.data.gov.uk/id/local-authority/32UF,Housing,Grants and Contributions to Outside Bodies - No Service Received,02/12/2021,30008540,"15,423.27",R A Joinery
South Holland District Council,http://statistics.data.gov.uk/id/local-authority/32UF,Housing,Grants and Contributions to Outside Bodies - No Service Received,02/12/2021,30008551,"6,892.33",NDJ Ltd T A Belton Construction
South Holland District Council,http://statistics.data.gov.uk/id/local-authority/32UF,Housing,Grants and Contributions to Outside Bodies - No Service Received,09/12/2021,30008840,"25,356.13",JPG Builders
South Holland District Council,http://statistics.data.gov.uk/id/local-authority/32UF,Housing,Grants and Contributions to Outside Bodies - No Service Received,16/12/2021,30009421,"15,000.00",M P L Home Improvements
South Holland District Council,http://statistics.data.gov.uk/id/local-authority/32UF,Housing,Grants and Contributions to Outside Bodies - No Service Received,23/12/2021,30009467,"6,333.94",CSM Carpets and Flooring Ltd
South Holland District Council,http://statistics.data.gov.uk/id/local-authority/32UF,Housing,Grants and Contributions to Outside Bodies - No Service Received,23/12/2021,30009482,"4,657.03",Martin Greaves Building Contractor
South Holland District Council,http://statistics.data.gov.uk/id/local-authority/32UF,Housing,Grants and Contributions to Outside Bodies - No Service Received,23/12/2021,30009494,"1,193.41",Bryan Thompson Windows Ltd
South Holland District Council,http://statistics.data.gov.uk/id/local-authority/32UF,Housing,Loans,13/12/2021,30009173,"170,744.00",Birketts Soicitors LLP
South Holland District Council,http://statistics.data.gov.uk/id/local-authority/32UF,Housing,Professional and Contractors Fees,02/12/2021,30008132,334,Language Line Ltd
South Holland District Council,http://statistics.data.gov.uk/id/local-authority/32UF,Housing,Professional and Contractors Fees,23/12/2021,30009496,349,Language Line Ltd
South Holland District Council,http://statistics.data.gov.uk/id/local-authority/32UF,Housing,Professional and Contractors Fees,04/01/2022,30009742,460,Messrs Longstaff and Co
South Holland District Council,http://statistics.data.gov.uk/id/local-authority/32UF,Housing,Professional Fees,07/12/2021,30008741,"1,078.56",Birketts Soicitors LLP
South Holland District Council,http://statistics.data.gov.uk/id/local-authority/32UF,Housing,Professional Fees,13/12/2021,30009173,"1,078.56",Birketts Soicitors LLP
South Holland District Council,http://statistics.data.gov.uk/id/local-authority/32UF,Housing,Professional Fees,16/12/2021,30009294,460,Messrs Longstaff and Co
South Holland District Council,http://statistics.data.gov.uk/id/local-authority/32UF,Housing,Professional Fees,08/01/2022,30009381,"1,130.50",Birketts Soicitors LLP
South Holland District Council,http://statistics.data.gov.uk/id/local-authority/32UF,Housing,Professional Fees,23/12/2021,30009611,"2,600.00",I AM SURVEYORS
South Holland District Council,http://statistics.data.gov.uk/id/local-authority/32UF,Housing,Purchase of Buildings,07/12/2021,30008741,"136,100.00",Birketts Soicitors LLP
South Holland District Council,http://statistics.data.gov.uk/id/local-authority/32UF,Housing,Purchase of Buildings,08/01/2022,30009381,"142,140.00",Birketts Soicitors LLP
South Holland District Council,http://statistics.data.gov.uk/id/local-authority/32UF,Housing Landlord Manager,Agency Staff,20/12/2021,30008346,650.5,Niyaa People
South Holland District Council,http://statistics.data.gov.uk/id/local-authority/32UF,Housing Landlord Manager,Agency Staff,02/12/2021,30008464,883.75,James Andrew
South Holland District Council,http://statistics.data.gov.uk/id/local-authority/32UF,Housing Landlord Manager,Agency Staff,14/12/2021,30008888,946.8,James Andrew
South Holland District Council,http://statistics.data.gov.uk/id/local-authority/32UF,Housing Landlord Manager,Agency Staff,23/12/2021,30009453,"1,034.30",James Andrew
South Holland District Council,http://statistics.data.gov.uk/id/local-authority/32UF,Housing Landlord Manager,Agency Staff,04/01/2022,30009507,813.12,Niyaa People
South Holland District Council,http://statistics.data.gov.uk/id/local-authority/32UF,Housing Landlord Manager,Agency Staff,23/12/2021,30009508,"1,041.02",Niyaa People
South Holland District Council,http://statistics.data.gov.uk/id/local-authority/32UF,Housing Landlord Manager,Agency Staff,11/01/2022,30009509,487.87,Niyaa People
South Holland District Council,http://statistics.data.gov.uk/id/local-authority/32UF,Housing Landlord Manager,Agency Staff,20/12/2021,30009514,170.94,Integrity Plus Ltd
South Holland District Council,http://statistics.data.gov.uk/id/local-authority/32UF,Housing Landlord Manager,Agency Staff,04/01/2022,30009682,901.25,James Andrew
South Holland District Council,http://statistics.data.gov.uk/id/local-authority/32UF,Housing Landlord Manager,Agency Staff,04/01/2022,30009701,170.94,Integrity Plus Ltd
South Holland District Council,http://statistics.data.gov.uk/id/local-authority/32UF,Housing Landlord Manager,Agency Staff,04/01/2022,30009719,170.94,Integrity Plus Ltd
South Holland District Council,http://statistics.data.gov.uk/id/local-authority/32UF,Housing Landlord Manager,Buildings Maintenance - Programmed,23/12/2021,30008723,"1,535.00",Fireco Ltd
South Holland District Council,http://statistics.data.gov.uk/id/local-authority/32UF,Housing Landlord Manager,Buildings Maintenance - Responsive,16/12/2021,30008686,"2,398.60",Lincs Water Services Ltd
South Holland District Council,http://statistics.data.gov.uk/id/local-authority/32UF,Housing Landlord Manager,Buildings Maintenance - Responsive,16/12/2021,30008687,"1,856.00",Lincs Water Services Ltd
South Holland District Council,http://statistics.data.gov.uk/id/local-authority/32UF,Housing Landlord Manager,Buildings Maintenance - Responsive,16/12/2021,30008688,"1,148.65",Lincs Water Services Ltd
South Holland District Council,http://statistics.data.gov.uk/id/local-authority/32UF,Housing Landlord Manager,Buildings Maintenance - Responsive,16/12/2021,30008689,"2,356.50",Lincs Water Services Ltd
South Holland District Council,http://statistics.data.gov.uk/id/local-authority/32UF,Housing Landlord Manager,Buildings Maintenance - Responsive,16/12/2021,30008690,"1,498.80",Lincs Water Services Ltd
South Holland District Council,http://statistics.data.gov.uk/id/local-authority/32UF,Housing Landlord Manager,Buildings Maintenance - Responsive,16/12/2021,30008760,"1,190.00",Kev Forman Roofing
South Holland District Council,http://statistics.data.gov.uk/id/local-authority/32UF,Housing Landlord Manager,Buildings Maintenance - Responsive,16/12/2021,30008764,"1,760.00",PERSONAL INFORMATION REDACTED
South Holland District Council,http://statistics.data.gov.uk/id/local-authority/32UF,Housing Landlord Manager,Buildings Maintenance - Responsive,16/12/2021,30008766,565,PERSONAL INFORMATION REDACTED
South Holland District Council,http://statistics.data.gov.uk/id/local-authority/32UF,Housing Landlord Manager,Buildings Maintenance - Responsive,09/12/2021,30008821,"1,270.00",Boors Ltd
South Holland District Council,http://statistics.data.gov.uk/id/local-authority/32UF,Housing Landlord Manager,Buildings Maintenance - Responsive,16/12/2021,30009373,950,Boors Ltd
South Holland District Council,http://statistics.data.gov.uk/id/local-authority/32UF,Housing Landlord Manager,Cesspool Emptying,06/01/2022,30009346,"1,650.00",Dalrod Drainage Solutions
South Holland District Council,http://statistics.data.gov.uk/id/local-authority/32UF,Housing Landlord Manager,Clothing Uniforms and Laundry,09/12/2021,30008503,875.9,Seal Select Products Ltd
South Holland District Council,http://statistics.data.gov.uk/id/local-authority/32UF,Housing Landlord Manager,Drain Repairs,06/01/2022,30009344,"6,194.10",Dalrod Drainage Solutions
South Holland District Council,http://statistics.data.gov.uk/id/local-authority/32UF,Housing Landlord Manager,Drain Repairs,06/01/2022,30009345,"3,740.00",Dalrod Drainage Solutions
South Holland District Council,http://statistics.data.gov.uk/id/local-authority/32UF,Housing Landlord Manager,Electrical Upgrade,09/12/2021,30008748,"11,706.06",D Brown Building Contractors Ltd
South Holland District Council,http://statistics.data.gov.uk/id/local-authority/32UF,Housing Landlord Manager,Electricity,14/12/2021,30008944,502.49,Total Energies
South Holland District Council,http://statistics.data.gov.uk/id/local-authority/32UF,Housing Landlord Manager,Electricity,14/12/2021,30009064,634.68,Total Energies
South Holland District Council,http://statistics.data.gov.uk/id/local-authority/32UF,Housing Landlord Manager,Fuel and Oil,02/12/2021,30008552,865.52,C H Jones Ltd
South Holland District Council,http://statistics.data.gov.uk/id/local-authority/32UF,Housing Landlord Manager,Fuel and Oil,07/12/2021,30008693,776.38,C H Jones Ltd
South Holland District Council,http://statistics.data.gov.uk/id/local-authority/32UF,Housing Landlord Manager,Fuel and Oil,09/12/2021,30008841,772.13,C H Jones Ltd
South Holland District Council,http://statistics.data.gov.uk/id/local-authority/32UF,Housing Landlord Manager,Fuel and Oil,16/12/2021,30009413,616.34,C H Jones Ltd
South Holland District Council,http://statistics.data.gov.uk/id/local-authority/32UF,Housing Landlord Manager,Fuel and Oil,23/12/2021,30009561,817.46,C H Jones Ltd
South Holland District Council,http://statistics.data.gov.uk/id/local-authority/32UF,Housing Landlord Manager,Furniture and Equipment,16/12/2021,30009396,687.5,Tunstall Healthcare UK Ltd
South Holland District Council,http://statistics.data.gov.uk/id/local-authority/32UF,Housing Landlord Manager,Gas Repairs,23/12/2021,30008783,"17,314.62",Aaron Services Ltd
South Holland District Council,http://statistics.data.gov.uk/id/local-authority/32UF,Housing Landlord Manager,Gas Servicing,23/12/2021,30008735,"21,710.41",Aaron Services Ltd
South Holland District Council,http://statistics.data.gov.uk/id/local-authority/32UF,Housing Landlord Manager,Gas Servicing,23/12/2021,30008781,"1,315.73",Aaron Services Ltd
South Holland District Council,http://statistics.data.gov.uk/id/local-authority/32UF,Housing Landlord Manager,Grounds Maintenance Contract (External),07/12/2021,30008624,"3,045.00",Greenscape Tree Safe Ltd
South Holland District Council,http://statistics.data.gov.uk/id/local-authority/32UF,Housing Landlord Manager,Grounds Maintenance Contract (External),07/12/2021,30008625,"3,100.00",Greenscape Tree Safe Ltd
South Holland District Council,http://statistics.data.gov.uk/id/local-authority/32UF,Housing Landlord Manager,Grounds Maintenance Contract (External),16/12/2021,30008915,850,Greenscape Tree Safe Ltd
South Holland District Council,http://statistics.data.gov.uk/id/local-authority/32UF,Housing Landlord Manager,Legal Fees,23/12/2021,30009580,665,Capsticks Solicitors LLP
South Holland District Council,http://statistics.data.gov.uk/id/local-authority/32UF,Housing Landlord Manager,Legal Fees,23/12/2021,30009581,902.75,Capsticks Solicitors LLP
South Holland District Council,http://statistics.data.gov.uk/id/local-authority/32UF,Housing Landlord Manager,Legal Fees,23/12/2021,30009587,545,Capsticks Solicitors LLP
South Holland District Council,http://statistics.data.gov.uk/id/local-authority/32UF,Housing Landlord Manager,Legal Fees,23/12/2021,30009589,"3,316.80",Capsticks Solicitors LLP
South Holland District Council,http://statistics.data.gov.uk/id/local-authority/32UF,Housing Landlord Manager,Legal Fees,23/12/2021,30009590,859.19,Capsticks Solicitors LLP
South Holland District Council,http://statistics.data.gov.uk/id/local-authority/32UF,Housing Landlord Manager,Legal Fees,23/12/2021,30009592,700,Capsticks Solicitors LLP
South Holland District Council,http://statistics.data.gov.uk/id/local-authority/32UF,Housing Landlord Manager,Legal Fees,23/12/2021,30009598,570,Capsticks Solicitors LLP
South Holland District Council,http://statistics.data.gov.uk/id/local-authority/32UF,Housing Landlord Manager,Legal Fees,23/12/2021,30009600,"1,347.00",Capsticks Solicitors LLP
South Holland District Council,http://statistics.data.gov.uk/id/local-authority/32UF,Housing Landlord Manager,Legal Fees,23/12/2021,30009602,"1,190.00",Capsticks Solicitors LLP
South Holland District Council,http://statistics.data.gov.uk/id/local-authority/32UF,Housing Landlord Manager,Legal Fees,23/12/2021,30009603,"1,819.50",Capsticks Solicitors LLP
South Holland District Council,http://statistics.data.gov.uk/id/local-authority/32UF,Housing Landlord Manager,Maintenance of Footpaths and Roadways,09/12/2021,30008424,"4,841.96",C G Godfrey Ltd
South Holland District Council,http://statistics.data.gov.uk/id/local-authority/32UF,Housing Landlord Manager,Maintenance of Footpaths and Roadways,09/12/2021,30008425,"5,421.18",C G Godfrey Ltd
South Holland District Council,http://statistics.data.gov.uk/id/local-authority/32UF,Housing Landlord Manager,Maintenance of Footpaths and Roadways,09/12/2021,30008426,"6,718.84",C G Godfrey Ltd
South Holland District Council,http://statistics.data.gov.uk/id/local-authority/32UF,Housing Landlord Manager,Maintenance of Footpaths and Roadways,14/12/2021,30008743,582.93,C G Godfrey Ltd
South Holland District Council,http://statistics.data.gov.uk/id/local-authority/32UF,Housing Landlord Manager,Maintenance of Footpaths and Roadways,14/12/2021,30008746,519.45,C G Godfrey Ltd
South Holland District Council,http://statistics.data.gov.uk/id/local-authority/32UF,Housing Landlord Manager,Maintenance of Footpaths and Roadways,23/12/2021,30009376,"7,207.85",C G Godfrey Ltd
South Holland District Council,http://statistics.data.gov.uk/id/local-authority/32UF,Housing Landlord Manager,Materials and Consumables,02/12/2021,30008474,"1,087.70",EPH Supplies Wholesale Ltd
South Holland District Council,http://statistics.data.gov.uk/id/local-authority/32UF,Housing Landlord Manager,Materials and Consumables,07/12/2021,30008605,450.06,Grafton Merchanting GB Ltd
South Holland District Council,http://statistics.data.gov.uk/id/local-authority/32UF,Housing Landlord Manager,Materials and Consumables,16/12/2021,30009288,"2,837.07",Gibbs and Dandy
South Holland District Council,http://statistics.data.gov.uk/id/local-authority/32UF,Housing Landlord Manager,Professional and Contractors Fees,02/12/2021,30008132,630,Language Line Ltd
South Holland District Council,http://statistics.data.gov.uk/id/local-authority/32UF,Housing Landlord Manager,Professional and Contractors Fees,23/12/2021,30008878,"1,000.00",Focus Consultants 2010 LLP
South Holland District Council,http://statistics.data.gov.uk/id/local-authority/32UF,Housing Landlord Manager,Professional and Contractors Fees,23/12/2021,30008879,"1,000.00",Focus Consultants 2010 LLP
South Holland District Council,http://statistics.data.gov.uk/id/local-authority/32UF,Housing Landlord Manager,Professional and Contractors Fees,23/12/2021,30008880,"1,000.00",Focus Consultants 2010 LLP
South Holland District Council,http://statistics.data.gov.uk/id/local-authority/32UF,Housing Landlord Manager,Professional and Contractors Fees,16/12/2021,30008942,"6,750.00",Ark Property Centre
South Holland District Council,http://statistics.data.gov.uk/id/local-authority/32UF,Housing Landlord Manager,Professional and Contractors Fees,23/12/2021,30009496,349,Language Line Ltd
South Holland District Council,http://statistics.data.gov.uk/id/local-authority/32UF,Housing Landlord Manager,Professional and Contractors Fees,23/12/2021,30009526,"1,100.00",NEC Software Solutions UK Ltd
South Holland District Council,http://statistics.data.gov.uk/id/local-authority/32UF,Housing Landlord Manager,Professional and Contractors Fees,23/12/2021,30009536,"4,250.00",Perfect Move
South Holland District Council,http://statistics.data.gov.uk/id/local-authority/32UF,Housing Landlord Manager,Professional and Contractors Fees,23/12/2021,30009642,"7,200.00",NEC Software Solutions UK Ltd
South Holland District Council,http://statistics.data.gov.uk/id/local-authority/32UF,Housing Landlord Manager,Roof Repairs,09/12/2021,30008770,600,Kev Forman Roofing
South Holland District Council,http://statistics.data.gov.uk/id/local-authority/32UF,Housing Landlord Manager,Roof Repairs,09/12/2021,30008771,615,Kev Forman Roofing
South Holland District Council,http://statistics.data.gov.uk/id/local-authority/32UF,Housing Landlord Manager,Roof Repairs,09/12/2021,30008772,"2,900.00",Kev Forman Roofing
South Holland District Council,http://statistics.data.gov.uk/id/local-authority/32UF,Housing Landlord Manager,Roof Repairs,09/12/2021,30008784,640,Kev Forman Roofing
South Holland District Council,http://statistics.data.gov.uk/id/local-authority/32UF,Housing Landlord Manager,Roof Repairs,09/12/2021,30008785,"1,035.00",Kev Forman Roofing
South Holland District Council,http://statistics.data.gov.uk/id/local-authority/32UF,Housing Landlord Manager,Roof Repairs,09/12/2021,30008786,760,Kev Forman Roofing
South Holland District Council,http://statistics.data.gov.uk/id/local-authority/32UF,Housing Landlord Manager,Roof Repairs,14/12/2021,30008787,840,Kev Forman Roofing
South Holland District Council,http://statistics.data.gov.uk/id/local-authority/32UF,Housing Landlord Manager,Roof Repairs,14/12/2021,30008790,640,Kev Forman Roofing
South Holland District Council,http://statistics.data.gov.uk/id/local-authority/32UF,Housing Landlord Manager,Roof Repairs,09/12/2021,30008832,440,Kev Forman Roofing
South Holland District Council,http://statistics.data.gov.uk/id/local-authority/32UF,Housing Landlord Manager,Roof Repairs,04/01/2022,30009392,480,Kev Forman Roofing
South Holland District Council,http://statistics.data.gov.uk/id/local-authority/32UF,Housing Landlord Manager,Roof Repairs,04/01/2022,30009395,490,Wrights and Holbeach Asphalt Ltd
South Holland District Council,http://statistics.data.gov.uk/id/local-authority/32UF,Housing Landlord Manager,Sewerage Treatment Works,14/12/2021,30008742,"24,718.07",C G Godfrey Ltd
South Holland District Council,http://statistics.data.gov.uk/id/local-authority/32UF,Housing Landlord Manager,Sewerage Treatment Works,23/12/2021,30009374,"4,980.00",C G Godfrey Ltd
South Holland District Council,http://statistics.data.gov.uk/id/local-authority/32UF,Housing Landlord Manager,Sewerage Treatment Works,23/12/2021,30009375,"5,780.00",C G Godfrey Ltd
South Holland District Council,http://statistics.data.gov.uk/id/local-authority/32UF,Housing Landlord Manager,Solid Fuel Servicing,23/12/2021,30008699,"1,532.95",Aaron Services Ltd
South Holland District Council,http://statistics.data.gov.uk/id/local-authority/32UF,Housing Landlord Manager,Solid Fuel Servicing,23/12/2021,30008780,"1,484.57",Aaron Services Ltd
South Holland District Council,http://statistics.data.gov.uk/id/local-authority/32UF,Housing Landlord Manager,Void Repairs,16/12/2021,30008758,850,Kev Forman Roofing
South Holland District Council,http://statistics.data.gov.uk/id/local-authority/32UF,Housing Landlord Manager,Void Repairs,09/12/2021,30008774,456.89,andrew Hicks Ltd
South Holland District Council,http://statistics.data.gov.uk/id/local-authority/32UF,Housing Landlord Manager,Void Repairs,09/12/2021,30008792,585,Boors Ltd
South Holland District Council,http://statistics.data.gov.uk/id/local-authority/32UF,Housing Landlord Manager,Void Repairs,09/12/2021,30008830,420.62,andrew Hicks Ltd
South Holland District Council,http://statistics.data.gov.uk/id/local-authority/32UF,Housing Landlord Manager,Water and Sewerage Charges,16/12/2021,30009128,"1,125.59",Anglian Water
South Holland District Council,http://statistics.data.gov.uk/id/local-authority/32UF,Housing Landlord Manager,Works to Buildings (Main Contractor),02/12/2021,30008531,"5,545.35",Acis HomePlus
South Holland District Council,http://statistics.data.gov.uk/id/local-authority/32UF,Housing Landlord Manager,Works to Buildings (Main Contractor),02/12/2021,30008533,"40,000.00",Martin Greaves Building Contractor
South Holland District Council,http://statistics.data.gov.uk/id/local-authority/32UF,Housing Landlord Manager,Works to Buildings (Main Contractor),23/12/2021,30008685,"101,673.48",Aaron Services Ltd
South Holland District Council,http://statistics.data.gov.uk/id/local-authority/32UF,Housing Landlord Manager,Works to Buildings (Main Contractor),16/12/2021,30008788,"33,039.62",D Brown Building Contractors Ltd
South Holland District Council,http://statistics.data.gov.uk/id/local-authority/32UF,Housing Landlord Manager,Works to Buildings (Main Contractor),16/12/2021,30008789,"65,954.14",D Brown Building Contractors Ltd
South Holland District Council,http://statistics.data.gov.uk/id/local-authority/32UF,Housing Landlord Manager,Works to Buildings (Main Contractor),20/12/2021,30008839,"5,354.46",Stuart Taplin Plumbing and Build Maint
South Holland District Council,http://statistics.data.gov.uk/id/local-authority/32UF,Housing Landlord Manager,Works to Buildings (Main Contractor),20/12/2021,30009313,"280,794.99",Hodgson Sayers Ltd
South Holland District Council,http://statistics.data.gov.uk/id/local-authority/32UF,Housing Landlord Manager,Works to Buildings (Main Contractor),20/12/2021,30009315,"41,884.26",Hodgson Sayers Ltd
South Holland District Council,http://statistics.data.gov.uk/id/local-authority/32UF,Housing Landlord Manager,Works to Buildings (Main Contractor),20/12/2021,30009387,"3,936.49",Hodgson Sayers Ltd
South Holland District Council,http://statistics.data.gov.uk/id/local-authority/32UF,Housing Landlord Manager,Works to Buildings (Main Contractor),16/12/2021,30009388,"6,845.10",D Brown Building Contractors Ltd
South Holland District Council,http://statistics.data.gov.uk/id/local-authority/32UF,Housing Landlord Manager,Works to Buildings (Main Contractor),16/12/2021,30009389,"5,311.35",D Brown Building Contractors Ltd
South Holland District Council,http://statistics.data.gov.uk/id/local-authority/32UF,Housing Landlord Manager,Works to Buildings (Main Contractor),20/12/2021,30009468,"6,105.84",R A Joinery
South Holland District Council,http://statistics.data.gov.uk/id/local-authority/32UF,HR,Other Employee Expenses,08/01/2022,30009380,"6,976.30",Aviva Health UK Limited
South Holland District Council,http://statistics.data.gov.uk/id/local-authority/32UF,HR,Other Employee Expenses,10/01/2022,30009382,"2,151.33",Aviva Health UK Limited
South Holland District Council,http://statistics.data.gov.uk/id/local-authority/32UF,HR,Staff Training Expenses (Non-Payroll),16/12/2021,30008481,"3,229.17",IT Online Learning
South Holland District Council,http://statistics.data.gov.uk/id/local-authority/32UF,HR,Staff Training Expenses (Non-Payroll),06/01/2022,30008875,980,Riskwize Limited T A EssentialSkillz
South Holland District Council,http://statistics.data.gov.uk/id/local-authority/32UF,HR,Staff Training Expenses (Non-Payroll),06/01/2022,30009450,980,Evac and Chair International Ltd
South Holland District Council,http://statistics.data.gov.uk/id/local-authority/32UF,ICT and Customer Services,Computer Hardware Maintenance,02/12/2021,30008405,"3,166.41",Lincolnshire County Council
South Holland District Council,http://statistics.data.gov.uk/id/local-authority/32UF,ICT and Customer Services,Computer Hardware Maintenance,16/12/2021,30008614,836.28,Phoenix Software Ltd
South Holland District Council,http://statistics.data.gov.uk/id/local-authority/32UF,ICT and Customer Services,Computer Software Licence Costs,16/12/2021,30008650,"1,140.00",Goss Interactive Ltd
South Holland District Council,http://statistics.data.gov.uk/id/local-authority/32UF,ICT and Customer Services,Computer Software Licence Costs,06/01/2022,30009105,"6,320.84",Phoenix Software Ltd
South Holland District Council,http://statistics.data.gov.uk/id/local-authority/32UF,ICT and Customer Services,Computer Software Licence Costs,20/12/2021,30009474,"15,107.50",Public Sector Partnership Services Ltd
South Holland District Council,http://statistics.data.gov.uk/id/local-authority/32UF,ICT and Customer Services,Computer Software Licence Costs,23/12/2021,30009537,"3,750.00",Goss Interactive Ltd
South Holland District Council,http://statistics.data.gov.uk/id/local-authority/32UF,ICT and Customer Services,Telephones,23/12/2021,30009125,"2,199.26",British Telecom Corporate Plc
South Holland District Council,http://statistics.data.gov.uk/id/local-authority/32UF,Planning,Agency - Vacant Post Cover,14/12/2021,30008499,"1,384.50",Vivid Resourcing
South Holland District Council,http://statistics.data.gov.uk/id/local-authority/32UF,Planning,Agency - Vacant Post Cover,23/12/2021,30008727,"1,545.75",Vivid Resourcing
South Holland District Council,http://statistics.data.gov.uk/id/local-authority/32UF,Planning,Agency - Vacant Post Cover,23/12/2021,30008885,"1,503.72",Vivid Resourcing
South Holland District Council,http://statistics.data.gov.uk/id/local-authority/32UF,Planning,Agency - Vacant Post Cover,06/01/2022,30009420,"1,345.50",Vivid Resourcing
South Holland District Council,http://statistics.data.gov.uk/id/local-authority/32UF,Planning,Grants and Contributions to Outside Bodies - No Service Received,23/12/2021,30009386,"25,586.00",C G Godfrey Ltd
South Holland District Council,http://statistics.data.gov.uk/id/local-authority/32UF,Planning,Professional and Contractors Fees,06/01/2022,30009117,"2,000.00",CP Viability Ltd
South Holland District Council,http://statistics.data.gov.uk/id/local-authority/32UF,Public Protection,Employee Professional Subscriptions (Non-Payroll),13/01/2022,30009717,"1,374.00",Cieh
South Holland District Council,http://statistics.data.gov.uk/id/local-authority/32UF,Public Protection,External Printing and Design Costs,09/12/2021,30008813,471.8,Newton Press Ltd
South Holland District Council,http://statistics.data.gov.uk/id/local-authority/32UF,Public Protection,Fuel and Oil,09/12/2021,30008841,40.6,C H Jones Ltd
South Holland District Council,http://statistics.data.gov.uk/id/local-authority/32UF,Public Protection,Fuel and Oil,23/12/2021,30009561,21.43,C H Jones Ltd
South Holland District Council,http://statistics.data.gov.uk/id/local-authority/32UF,Public Protection,Furniture and Equipment,06/01/2022,30009530,539,Campbell Associates Ltd
South Holland District Council,http://statistics.data.gov.uk/id/local-authority/32UF,Public Protection,LA funded Funeral,07/12/2021,30008584,"1,200.00",Riverside Funeral Services
South Holland District Council,http://statistics.data.gov.uk/id/local-authority/32UF,Public Protection,LA funded Funeral,07/12/2021,30008607,"1,200.00",Riverside Funeral Services
South Holland District Council,http://statistics.data.gov.uk/id/local-authority/32UF,Public Protection,LA funded Funeral,23/12/2021,30009557,"1,200.00",Riverside Funeral Services
South Holland District Council,http://statistics.data.gov.uk/id/local-authority/32UF,Public Protection,Professional and Contractors Fees,23/12/2021,30008816,450,Pengelly and Mizen Vets
South Holland District Council,http://statistics.data.gov.uk/id/local-authority/32UF,Public Protection,Professional and Contractors Fees,04/01/2022,30009656,"1,656.00",Healthguard Limited
South Holland District Council,http://statistics.data.gov.uk/id/local-authority/32UF,SHDC Revenues & Benefits,Other Income,11/01/2022,30009515,553.93,Jacobs Certificated Bailiffs
South Holland District Council,http://statistics.data.gov.uk/id/local-authority/32UF,South Holland Balance Sheet,Long Term Debtors - Other,23/12/2021,30006388,"4,899.00",Breckland Council
South Holland District Council,http://statistics.data.gov.uk/id/local-authority/32UF,Spalding Specials,Buildings Maintenance - Responsive,02/12/2021,30007646,121.26,H20 Nationwide Limited
South Holland District Council,http://statistics.data.gov.uk/id/local-authority/32UF,Spalding Specials,Furniture and Equipment,23/12/2021,30008943,"7,552.00",Cozens UK Ltd
South Holland District Council,http://statistics.data.gov.uk/id/local-authority/32UF,Town Centre Improvement Plan,Agency Staff,20/12/2021,30009504,586.08,Integrity Plus Ltd
South Holland District Council,http://statistics.data.gov.uk/id/local-authority/32UF,Town Centre Improvement Plan,Agency Staff,23/12/2021,30009505,592.37,Blue Arrow Ltd
South Holland District Council,http://statistics.data.gov.uk/id/local-authority/32UF,Town Centre Improvement Plan,Agency Staff,04/01/2022,30009726,626.78,247 Personnel Ltd
South Holland District Council,http://statistics.data.gov.uk/id/local-authority/32UF,Town Centre Improvement Plan,Agency Staff,04/01/2022,30009729,626.8,247 Personnel Ltd
South Holland District Council,http://statistics.data.gov.uk/id/local-authority/32UF,Town Centre Improvement Plan,External Printing and Design Costs,07/12/2021,30008631,470,Classic Printers Crowland Ltd
South Holland District Council,http://statistics.data.gov.uk/id/local-authority/32UF,Town Centre Improvement Plan,External Printing and Design Costs,07/12/2021,30008632,"1,098.00",Classic Printers Crowland Ltd
South Holland District Council,http://statistics.data.gov.uk/id/local-authority/32UF,Town Centre Improvement Plan,External Printing and Design Costs,07/12/2021,30008634,591,Classic Printers Crowland Ltd
South Holland District Council,http://statistics.data.gov.uk/id/local-authority/32UF,Town Centre Improvement Plan,External Printing and Design Costs,07/12/2021,30008636,591,Classic Printers Crowland Ltd
South Holland District Council,http://statistics.data.gov.uk/id/local-authority/32UF,Town Centre Improvement Plan,Other Miscellaneous Expenses,16/12/2021,30008916,"1,935.22",South Lincs Security Limited
South Holland District Council,http://statistics.data.gov.uk/id/local-authority/32UF,Town Centre Improvement Plan,Other Miscellaneous Expenses,14/12/2021,30009174,900.04,Tooleys Amusements
South Holland District Council,http://statistics.data.gov.uk/id/local-authority/32UF,Town Centre Improvement Plan,Other Miscellaneous Expenses,16/12/2021,30009291,943.5,The Stall Hire Company
South Holland District Council,http://statistics.data.gov.uk/id/local-authority/32UF,Town Centre Improvement Plan,Other Miscellaneous Expenses,20/12/2021,30009456,"2,264.00",Dick Ropa Entertainments
South Holland District Council,http://statistics.data.gov.uk/id/local-authority/32UF,Town Centre Improvement Plan,Performers and Entertainers Fees,07/12/2021,30008639,"1,000.00",University of Lincoln Transported
South Holland District Council,http://statistics.data.gov.uk/id/local-authority/32UF,Town Centre Improvement Plan,Performers and Entertainers Fees,07/12/2021,30008640,"2,000.00",University of Lincoln Transported
South Holland District Council,http://statistics.data.gov.uk/id/local-authority/32UF,Town Centre Improvement Plan,Professional and Contractors Fees,23/12/2021,30009621,"6,770.00",T N Sneath and Sons
South Holland District Council,http://statistics.data.gov.uk/id/local-authority/32UF,Town Centre Improvement Plan,Rent Payments,23/12/2021,30008876,"2,000.00",PERSONAL INFORMATION REDACTED
